[Event "Faroes Open 2018"]
[Site "Sandavagur"]
[Date "2018.07.11"]
[Round "6"]
[White "Haubro, Martin"]
[Black "Fjallheim, Leif Reinert"]
[Result "1-0"]
[ECO "C80"]
[WhiteElo "2373"]
[BlackElo "1886"]
[Annotator "NA"]
[PlyCount "79"]
[EventDate "2018.07.07"]
[EventType "swiss"]
[EventCountry "FAI"]
[SourceTitle "playchess.com"]
[Source "ChessBase"]
[SourceQuality "1"]
[TimeControl "40/5400+30:900+30"]

1. e4 {[%emt 0:00:00]} e5 {[%emt 0:01:34]} 2. Nf3 {[%emt 0:00:00]} Nc6 {[%emt 0:00:20]} 3. Bb5 {[%emt 0:00:00]} a6 {[%emt 0:00:10]} 4. Ba4 {[%emt 0:00:00]} Nf6 {[%emt 0:01:25]} 5. O-O {[%emt 0:00:00]} Nxe4 {[%emt 0:03:34]} 6. d4 {[%emt 0:02:28]} exd4 {[%emt 0:02:12]} 7. Re1 {[%emt 0:01:44]} d5 {[%emt 0:01:39]} 8. Nxd4 {[%emt 0:00:05]} Bd6 $1 {[%emt 0:00:36]} 9. Nxc6 {[%emt 0:00:12]} Bxh2+ $1 {[%emt 0:00:35]} 10. Kh1 {[%emt 0:00:04]} Qh4 $1 {[%emt 0:01:00] C80: Open Ruy Lopez: Sidelines and 9 Nbd2} 11. Rxe4+ $1 {[%emt 0:00:04]} dxe4 {[%emt 0:00:11]} 12. Qd8+ {[%emt 0:00:05]} Qxd8 {[%emt 0:00:03]} 13. Nxd8+ {[%emt 0:00:07]} Kxd8 {[%emt 0:00:08]} 14. Kxh2 {[%emt 0:00:03]} Be6 $1 {[%emt 0:07:36] LiveBook: 43 Games} 15. Nc3 {[%emt 0:01:26]} (15. Be3 $14 f5 16. Nc3 Kc8 17. Re1 Rf8 18. g4 fxg4 19. Nxe4 Bxa2 {1-0 (42) Quesada Perez,Y (2624)-Sarkar,J (2375) Philadelphia 2017}) 15... f5 {[%emt 0:03:41]} ({Black should play} 15... c5 $1 $15) 16. Bf4 {[%emt 0:00:11]} Kc8 $146 {[%emt 0:10:19] [#]} ({Predecessor:} 16... c6 17. Ne2 Bd5 18. Nd4 {1-0 (62) Nowak,I (2327)-Campoy Moreno,A (2370) ICCF email 2006}) 17. g4 {[%emt 0:22:21]} (17. Bb3 $1 $16 {[%cal Rb3e6]} Bxb3 18. cxb3) 17... g6 {[%emt 0:05:12]} (17... fxg4 $14 18. Nxe4 Rf8) 18. gxf5 {[%emt 0:00:07]} gxf5 {[%emt 0:00:11]} 19. Ne2 {[%emt 0:01:56]} (19. Bb3 $16 Bxb3 20. cxb3) 19... c5 {[%emt 0:03:16]} 20. c3 {[%emt 0:06:37]} Rg8 {[%emt 0:06:14]} 21. Bd6 {[%emt 0:12:00]} b5 {[%emt 0:03:29]} 22. Bd1 {[%emt 0:00:26]} c4 {[%emt 0:02:14]} 23. a4 {[%emt 0:10:16]} Kd7 {[%emt 0:02:46]} 24. Bf4 $16 {[%emt 0:00:25]} Rg4 {[%emt 0:05:27]} 25. axb5 {[%emt 0:09:30]} Rh4+ {[%emt 0:06:35]} 26. Kg3 {[%emt 0:00:05]} Rh5 {[%emt 0:00:47]} 27. Kg2 {[%emt 0:00:24]} Rg8+ {[%emt 0:01:06]} 28. Bg3 {[%emt 0:00:09]} Rh4 {[%emt 0:02:08]} 29. Rxa6 {[%emt 0:03:30]} f4 {[%emt 0:01:08]} 30. Ra7+ {[%emt 0:02:23]} Kd6 {[%emt 0:19:08]} 31. Nxf4 {[%emt 0:02:30]} Rxf4 {[%emt 0:00:34]} 32. Kh2 {[%emt 0:00:11]} Rxg3 {[%emt 0:00:19]} 33. Kxg3 {[%emt 0:00:05]} Rf7 {[%emt 0:02:53]} 34. Rxf7 {[%emt 0:11:49]} Bxf7 {[%emt 0:00:02]} 35. Kf4 {[%emt 0:00:07]} Bd5 {[%emt 0:07:45]} 36. Bh5 {[%emt 0:08:01]} Ke7 {[%emt 0:01:08]} 37. Ke5 {[%emt 0:00:14]} Bb7 {[%emt 0:00:31]} 38. Be2 {[%emt 0:00:10]} Kf7 {[%emt 0:00:28]} 39. Bxc4+ {[%emt 0:00:07]} Kg6 {[%emt 0:00:33]} 40. Bd5 {[%emt 0:00:21]} 1-0

[Event "Faroes Open 2018"]
[Site "Sandavagur"]
[Date "2018.07.11"]
[Round "6"]
[White "Nilssen, John Arni"]
[Black "Kristiansen, Jens"]
[Result "1/2-1/2"]
[ECO "A10"]
[WhiteElo "2301"]
[BlackElo "2380"]
[Annotator "NA"]
[PlyCount "104"]
[EventDate "2018.07.07"]
[EventType "swiss"]
[EventCountry "FAI"]
[SourceTitle "playchess.com"]
[Source "ChessBase"]
[SourceQuality "1"]
[TimeControl "40/5400+30:900+30"]

1. c4 {[%emt 0:00:00]} f5 {[%emt 0:00:00]} 2. g3 {[%emt 0:00:36]} Nf6 {[%emt 0:00:01]} 3. Bg2 {[%emt 0:00:03]} e5 {[%emt 0:00:59]} 4. Nc3 {[%emt 0:00:06]} Bb4 {[%emt 0:01:00]} 5. Qc2 {[%emt 0:01:44]} Bxc3 {[%emt 0:03:52]} 6. Qxc3 {[%emt 0:00:07]} d6 {[%emt 0:00:09]} 7. d3 {[%emt 0:06:35] LiveBook: 4 Games} O-O {[%emt 0:00:48]} 8. Nf3 {[%emt 0:04:23]} Nc6 {[%emt 0:01:30]} 9. O-O {[%emt 0:01:45]} a5 {[%emt 0:03:34]} 10. d4 {[%emt 0:11:56]} e4 {[%emt 0:12:57]} 11. Ne1 {[%emt 0:06:12]} d5 {[%emt 0:01:04]} 12. Nc2 {[%emt 0:06:22]} Be6 {[%emt 0:03:43]} 13. b3 {[%emt 0:03:38]} Qd7 {[%emt 0:04:05]} 14. f3 {[%emt 0:03:45]} Rad8 {[%emt 0:04:27]} 15. Bg5 {[%emt 0:05:28]} dxc4 $11 {[%emt 0:14:57]} 16. fxe4 {[%emt 0:02:25]} Nxd4 {[%emt 0:02:08]} 17. Nxd4 {[%emt 0:02:07]} Qxd4+ {[%emt 0:00:07]} 18. Qxd4 {[%emt 0:00:02]} Rxd4 {[%emt 0:00:09]} 19. exf5 {[%emt 0:16:48]} Bd5 {[%emt 0:00:48]} 20. Bxf6 {[%emt 0:06:49]} Rxf6 {[%emt 0:00:33]} 21. Rf4 {[%emt 0:03:19]} Rd2 {[%emt 0:00:49]} 22. Bxd5+ {[%emt 0:02:43]} Rxd5 {[%emt 0:00:07]} 23. Rxc4 {[%emt 0:00:15]} Rdxf5 {[%emt 0:00:13]} 24. Rxc7 {[%emt 0:00:21]} Re5 {[%emt 0:02:29]} 25. Re1 {[%emt 0:03:43]} b5 {[%emt 0:00:43]} 26. Ra7 {[%emt 0:00:05]} b4 {[%emt 0:01:31]} 27. Rf1 {[%emt 0:02:43]} Rxe2 {[%emt 0:03:03]} 28. Rxf6 {[%emt 0:00:04]} gxf6 {[%emt 0:00:06]} 29. Rxa5 {[%emt 0:00:03]} Kg7 {[%emt 0:00:20]} 30. Ra4 {[%emt 0:00:55]} Kg6 {[%emt 0:02:29]} 31. Rxb4 {[%emt 0:00:39]} Rxa2 {[%emt 0:00:06]} 32. Rh4 {[%emt 0:00:04]} h5 {[%emt 0:02:22]} 33. Kf1 {[%emt 0:01:12]} Kg5 {[%emt 0:01:00]} 34. b4 {[%emt 0:00:47]} f5 {[%emt 0:00:52]} 35. Kg1 {[%emt 0:07:10]} Rb2 {[%emt 0:01:45]} 36. Rc4 {[%emt 0:00:09]} Kf6 {[%emt 0:02:32]} 37. Rc6+ {[%emt 0:02:02]} Kg5 {[%emt 0:01:01]} 38. Rc4 {[%emt 0:00:19]} Kf6 {[%emt 0:00:09]} 39. h4 {[%emt 0:00:26]} Ke5 {[%emt 0:01:28]} 40. Kf1 {[%emt 0:01:22]} Kd5 {[%emt 0:01:09]} 41. Rc5+ {[%emt 0:15:42]} Ke4 {[%emt 0:15:43]} 42. b5 {[%emt 0:00:00]} Rb3 {[%emt 0:00:00]} 43. Kf2 {[%emt 0:00:00]} Rf3+ {[%emt 0:00:00]} 44. Kg2 {[%emt 0:00:00]} Rb3 {[%emt 0:00:00]} 45. Rc4+ {[%emt 0:00:00]} Ke5 {[%emt 0:00:00]} 46. Rc5+ {[%emt 0:00:00]} Ke4 {[%emt 0:00:00]} 47. Kh3 {[%emt 0:00:00]} Rb2 {[%emt 0:00:00]} 48. Rc4+ {[%emt 0:00:00]} Ke5 {[%emt 0:00:00]} 49. Rc8 {[%emt 0:00:00]} Rxb5 {[%emt 0:00:00]} 50. Rh8 {[%emt 0:00:19]} Rb3 {[%emt 0:00:00]} 51. Rxh5 {[%emt 0:01:17]} Kf6 {[%emt 0:00:00]} 52. Kg2 {[%emt 0:03:01]} Rb2+ {[%emt 0:00:00]} 1/2-1/2

[Event "Faroes Open 2018"]
[Site "Sandavagur"]
[Date "2018.07.11"]
[Round "6"]
[White "Nilssen, Ellen Fredericia"]
[Black "Simonsen, Hans Kristian"]
[Result "0-1"]
[ECO "E61"]
[WhiteElo "2152"]
[BlackElo "2150"]
[Annotator "NA"]
[PlyCount "68"]
[EventDate "2018.07.07"]
[EventType "swiss"]
[EventCountry "FAI"]
[SourceTitle "playchess.com"]
[Source "ChessBase"]
[SourceQuality "1"]
[TimeControl "40/5400+30:900+30"]

1. d4 {[%emt 0:00:00]} Nf6 {[%emt 0:00:00]} 2. c4 {[%emt 0:00:04]} g6 {[%emt 0:00:00]} 3. Nc3 {[%emt 0:00:07]} Bg7 {[%emt 0:00:00]} 4. Bg5 {[%emt 0:00:28]} h6 {[%emt 0:00:13] LiveBook: 84 Games} 5. Bh4 {[%emt 0:00:08]} c5 {[%emt 0:00:25] E61: King's Indian: Early deviations for White, including Smyslov System} 6. d5 {[%emt 0:05:32]} (6. e3 O-O 7. Nf3 cxd4 8. exd4 g5 9. Bg3 d5 10. h4 g4 11. Ne5 Nc6 12. Nxc6 bxc6 13. Be5 Be6 14. c5 Rb8 15. Qc2 Nh5 16. Bxg7 Nxg7 {0-1 (57) Ivanisevic,I (2619)-Topalov,V (2774) Kozloduy 2013}) 6... Qa5 {[%emt 0:01:59]} 7. Qd2 {[%emt 0:02:15]} g5 {[%emt 0:00:28]} 8. Bg3 {[%emt 0:02:33]} Nh5 {[%emt 0:00:59]} 9. e4 $146 {[%emt 0:08:39]} ({Predecessor:} 9. Bxb8 Rxb8 10. h4 g4 11. e3 a6 12. Bd3 b5 13. Nge2 {½-½ (32) Bjork,C (2475)-Schuetz,I (2294) Sweden 2001}) 9... Nxg3 {[%emt 0:00:11]} 10. hxg3 {[%emt 0:00:07]} d6 {[%emt 0:00:54]} 11. Bd3 {[%emt 0:05:08]} Na6 {[%emt 0:01:45]} 12. Nge2 {[%emt 0:07:01]} Nb4 {[%emt 0:06:07]} 13. a3 {[%emt 0:08:35]} Nxd3+ {[%emt 0:01:21]} 14. Qxd3 {[%emt 0:00:06]} Bd7 {[%emt 0:00:30]} 15. O-O {[%emt 0:02:08]} a6 {[%emt 0:02:41]} 16. b4 {[%emt 0:08:05]} Qc7 {[%emt 0:01:05]} 17. Rab1 {[%emt 0:10:43]} cxb4 {[%emt 0:02:58]} 18. Rxb4 {[%emt 0:00:33]} Rc8 {[%emt 0:01:56]} 19. Rfb1 {[%emt 0:02:12]} Rb8 {[%emt 0:05:32]} 20. Nd1 {[%emt 0:02:15]} O-O {[%emt 0:00:10]} 21. Ne3 {[%emt 0:00:20]} b5 $11 {[%emt 0:01:42]} 22. cxb5 {[%emt 0:08:33]} Rxb5 {[%emt 0:01:18]} 23. Nd4 {[%emt 0:03:05]} Bxd4 {[%emt 0:00:13]} 24. Qxd4 {[%emt 0:00:50]} Rc8 {[%emt 0:00:16]} 25. Rxb5 {[%emt 0:00:59]} axb5 {[%emt 0:00:26]} 26. Rb3 {[%emt 0:12:10]} Qc1+ {[%emt 0:00:59]} 27. Kh2 {[%emt 0:00:01]} Qe1 {[%emt 0:00:12]} 28. Nf5 {[%emt 0:06:13]} Bxf5 {[%emt 0:00:54]} 29. exf5 {[%emt 0:00:02]} Rc1 {[%emt 0:02:18]} 30. g4 {[%emt 0:00:12]} Qh1+ {[%emt 0:00:20]} 31. Kg3 {[%emt 0:00:12]} Rc4 {[%emt 0:00:17]} 32. Qd3 {[%emt 0:03:17]} Qh4+ {[%emt 0:00:26]} 33. Kf3 {[%emt 0:00:04]} Rf4+ {[%emt 0:00:22]} 34. Ke3 {[%emt 0:00:06]} Qxf2# {[%emt 0:00:07]} 0-1

[Event "Faroes Open 2018"]
[Site "Sandavagur"]
[Date "2018.07.11"]
[Round "6"]
[White "Nielsen, Torkil"]
[Black "Esteve Sanchez, Sergio"]
[Result "1-0"]
[ECO "B22"]
[WhiteElo "2115"]
[BlackElo "1994"]
[Annotator "NA"]
[PlyCount "51"]
[EventDate "2018.07.07"]
[EventType "swiss"]
[EventCountry "FAI"]
[SourceTitle "playchess.com"]
[Source "ChessBase"]
[SourceQuality "1"]
[TimeControl "40/5400+30:900+30"]

1. e4 {[%emt 0:00:00]} c5 {[%emt 0:00:00]} 2. c3 {[%emt 0:00:08]} d5 {[%emt 0:00:00]} 3. exd5 {[%emt 0:00:20]} Qxd5 {[%emt 0:00:02]} 4. d4 {[%emt 0:00:30]} Nf6 {[%emt 0:00:27]} 5. Nf3 {[%emt 0:00:18]} Bg4 {[%emt 0:00:50] LiveBook: 2042 Games} 6. Be2 {[%emt 0:01:39]} Nc6 {[%emt 0:01:13]} 7. O-O {[%emt 0:01:15]} e6 {[%emt 0:06:01]} 8. h3 {[%emt 0:01:53]} Bh5 {[%emt 0:05:54]} 9. Qa4 {[%emt 0:03:09]} cxd4 {[%emt 0:05:14]} 10. cxd4 {[%emt 0:02:07]} Bxf3 {[%emt 0:07:41]} 11. Bxf3 {[%emt 0:06:54]} Qd7 {[%emt 0:00:43]} 12. Nc3 {[%emt 0:06:47]} Be7 {[%emt 0:05:57]} 13. d5 $14 {[%emt 0:09:31]} exd5 {[%emt 0:17:18]} 14. Rd1 {[%emt 0:01:28]} d4 {[%emt 0:02:02]} 15. Be3 {[%emt 0:08:40]} O-O {[%emt 0:02:09]} 16. Bxd4 {[%emt 0:06:04]} Nxd4 {[%emt 0:04:19]} 17. Rxd4 {[%emt 0:01:39]} Qxa4 {[%emt 0:00:51]} 18. Rxa4 {[%emt 0:00:29]} a5 {[%emt 0:02:15]} 19. Nb5 {[%emt 0:07:27]} Ra6 {[%emt 0:05:58]} 20. a3 {[%emt 0:05:20]} Rd8 {[%emt 0:02:58]} 21. Rc1 {[%emt 0:05:23]} Re6 {[%emt 0:12:00]} 22. Rxa5 {[%emt 0:02:04]} b6 {[%emt 0:02:14]} 23. Ra7 {[%emt 0:02:37]} Bc5 {[%emt 0:00:40]} 24. b4 {[%emt 0:00:59]} Bd4 {[%emt 0:01:51]} 25. Nxd4 {[%emt 0:06:35]} Rxd4 {[%emt 0:00:14]} 26. Rc8+ {[%emt 0:00:42]} 1-0

[Event "Faroes Open 2018"]
[Site "Sandavagur"]
[Date "2018.07.11"]
[Round "6"]
[White "Maroroa, Sue"]
[Black "Nielsen, Rógvi Egilstoft"]
[Result "0-1"]
[ECO "B01"]
[WhiteElo "2104"]
[BlackElo "2337"]
[Annotator "NA"]
[PlyCount "140"]
[EventDate "2018.07.07"]
[EventType "swiss"]
[EventCountry "FAI"]
[SourceTitle "playchess.com"]
[Source "ChessBase"]
[SourceQuality "1"]
[TimeControl "40/5400+30:900+30"]

1. e4 {[%emt 0:00:00]} d5 {[%emt 0:00:00]} 2. exd5 {[%emt 0:00:00]} Nf6 {[%emt 0:00:11]} 3. d4 {[%emt 0:00:00]} Bg4 {[%emt 0:02:53]} 4. Bb5+ {[%emt 0:00:03]} Nbd7 {[%emt 0:11:23]} 5. Be2 {[%emt 0:00:48]} Bxe2 {[%emt 0:00:50]} 6. Qxe2 {[%emt 0:00:13]} Nxd5 {[%emt 0:01:32]} 7. Nf3 {[%emt 0:01:03] LiveBook: 17 Partien B01: Scandinavian Defence} g6 {[%emt 0:07:52]} (7... e6 8. O-O c6 9. c4 N5f6 10. Nc3 Be7 11. d5 cxd5 12. cxd5 Nxd5 13. Nxd5 exd5 14. Re1 Nf6 {1-0 (42) Coenen,M (2435)-Vandevoort,P (2376) Belgium 2016}) 8. O-O {[%emt 0:10:02]} Bg7 {[%emt 0:02:36]} 9. c4 {[%emt 0:01:57]} N5b6 {[%emt 0:02:21]} 10. Nc3 {[%emt 0:01:27]} c6 $146 {[%emt 0:03:50]} ({Predecessor:} 10... O-O 11. c5 Nc8 12. Qb5 Rb8 13. Bf4 e6 14. Rfd1 Ne7 {1-0 (51) Gimenez Martinez,A (2184)-Palacios Latasa,E (2238) Aragon 2016}) 11. Bg5 {[%emt 0:03:28]} Nf6 {[%emt 0:03:43]} 12. Rfe1 {[%emt 0:02:24]} h6 {[%emt 0:01:46]} 13. Bh4 {[%emt 0:01:05]} g5 {[%emt 0:27:26]} 14. Bg3 {[%emt 0:01:03]} Nh5 {[%emt 0:00:23]} 15. Be5 {[%emt 0:05:25]} f6 {[%emt 0:00:35]} 16. Bg3 $1 {[%emt 0:18:47]} Nxg3 {[%emt 0:01:54]} 17. hxg3 $16 {[%emt 0:00:06]} O-O {[%emt 0:05:47]} 18. Qxe7 {[%emt 0:16:13]} Rf7 {[%emt 0:00:22]} 19. Qe2 {[%emt 0:01:59]} g4 {[%emt 0:00:41]} 20. Nh4 {[%emt 0:02:08]} Qxd4 {[%emt 0:01:08]} 21. c5 {[%emt 0:02:04]} Qxc5 {[%emt 0:03:04]} 22. Qxg4 {[%emt 0:05:47]} f5 {[%emt 0:00:14]} 23. Qf4 {[%emt 0:00:09]} Qc4 {[%emt 0:06:03]} 24. Rac1 {[%emt 0:01:43]} Rd8 {[%emt 0:01:56]} 25. Qe3 {[%emt 0:02:29]} f4 {[%emt 0:00:57]} 26. gxf4 {[%emt 0:00:22]} Qxf4 {[%emt 0:00:08]} 27. Nf3 {[%emt 0:00:36]} Qxe3 {[%emt 0:09:05]} 28. Rxe3 {[%emt 0:00:11]} a5 {[%emt 0:00:04]} 29. Ne5 {[%emt 0:04:20]} Rf5 {[%emt 0:02:04]} 30. Ng6 {[%emt 0:03:07]} Rf7 {[%emt 0:00:22]} 31. Ne5 {[%emt 0:00:12]} Rf5 {[%emt 0:00:03]} 32. Ng6 {[%emt 0:00:05]} Kh7 {[%emt 0:02:54]} 33. Nh4 {[%emt 0:00:38]} Rf7 {[%emt 0:00:31]} 34. Nf3 {[%emt 0:01:09]} Rfd7 {[%emt 0:00:36]} 35. Re2 {[%emt 0:04:41]} Rd3 {[%emt 0:00:15]} 36. Re7 {[%emt 0:00:47]} R8d7 {[%emt 0:00:17]} 37. Rxd7 {[%emt 0:05:13]} Nxd7 {[%emt 0:01:13]} 38. Rd1 {[%emt 0:02:26]} Nc5 {[%emt 0:00:38]} 39. Ne1 {[%emt 0:00:11]} Rd4 {[%emt 0:00:46]} 40. Rxd4 {[%emt 0:01:15]} Bxd4 {[%emt 0:00:07]} 41. Nd1 {[%emt 0:16:13]} Na4 {[%emt 0:03:17]} 42. b3 {[%emt 0:00:00]} Nc5 {[%emt 0:00:18]} 43. Nc2 {[%emt 0:00:00]} Bf6 {[%emt 0:00:08]} 44. Kf1 {[%emt 0:00:00]} a4 {[%emt 0:00:25]} 45. bxa4 {[%emt 0:00:00]} Nxa4 {[%emt 0:00:06]} 46. Ke2 {[%emt 0:00:00]} Kg6 {[%emt 0:01:18]} 47. Kd3 {[%emt 0:00:00]} Kf5 {[%emt 0:00:58]} 48. Nde3+ {[%emt 0:00:00]} Ke6 {[%emt 0:01:43]} 49. Nd4+ {[%emt 0:00:00]} Bxd4 {[%emt 0:00:42]} 50. Kxd4 {[%emt 0:00:00]} b5 {[%emt 0:00:07]} 51. f4 c5+ {[%emt 0:00:07]} 52. Kd3 {[%emt 0:01:59]} h5 {[%emt 0:00:08]} 53. g3 {[%emt 0:00:28]} Kf6 {[%emt 0:05:47]} 54. Nd5+ {[%emt 0:00:52]} Kf5 {[%emt 0:00:06]} 55. Ne3+ {[%emt 0:00:02]} Ke6 {[%emt 0:00:30]} 56. Nd1 {[%emt 0:00:07]} Nb6 {[%emt 0:04:18]} 57. Nc3 {[%emt 0:02:43]} b4 {[%emt 0:01:21]} 58. Ne4 {[%emt 0:01:25]} c4+ {[%emt 0:00:10]} 59. Kd4 {[%emt 0:00:04]} c3 {[%emt 0:00:33]} 60. a3 {[%emt 0:03:05]} c2 {[%emt 0:00:52]} 61. Nc5+ {[%emt 0:00:03]} Kf5 {[%emt 0:01:12]} 62. Nd3 {[%emt 0:00:09]} bxa3 {[%emt 0:00:46]} 63. Nc1 {[%emt 0:00:06]} Kg4 {[%emt 0:00:53]} 64. Kd3 {[%emt 0:00:55]} Kxg3 {[%emt 0:00:31]} 65. f5 {[%emt 0:01:31]} h4 {[%emt 0:00:39]} 66. Kxc2 {[%emt 0:00:19]} h3 {[%emt 0:00:44]} 67. Ne2+ {[%emt 0:01:33]} Kf2 {[%emt 0:00:21]} 68. Nc3 {[%emt 0:00:57]} h2 {[%emt 0:00:20]} 69. Ne4+ {[%emt 0:00:03]} Kf3 {[%emt 0:00:11]} 70. Nd2+ {[%emt 0:00:22]} Kf4 {[%emt 0:00:29]} 0-1

[Event "Faroes Open 2018"]
[Site "Sandavagur"]
[Date "2018.07.11"]
[Round "6"]
[White "Hruby, Milan"]
[Black "Fruehauf, Norbert"]
[Result "1/2-1/2"]
[ECO "A41"]
[WhiteElo "2031"]
[BlackElo "1958"]
[Annotator "NA"]
[PlyCount "68"]
[EventDate "2018.07.07"]
[EventType "swiss"]
[EventCountry "FAI"]
[SourceTitle "playchess.com"]
[Source "ChessBase"]
[SourceQuality "1"]
[TimeControl "40/5400+30:900+30"]

1. d4 {[%emt 0:00:00]} d6 {[%emt 0:00:00]} 2. c4 {[%emt 0:00:00]} e5 {[%emt 0:00:00]} 3. d5 {[%emt 0:00:00]} f5 {[%emt 0:01:56]} 4. Nc3 {[%emt 0:00:56]} Nf6 {[%emt 0:00:27]} 5. f3 {[%emt 0:01:39] A41: 1 d4 d6: Tartakower System and Modern Defence} (5. g3 g6 6. Bg2 Bg7 7. e4 O-O 8. Nge2 fxe4 9. Nxe4 Nxe4 10. Bxe4 Bh3 11. Be3 Nd7 12. Nc3 Nf6 13. Bf3 e4 {0-1 (24) Golichenko,I (2413)-Mamedov,R (2689) Lvov 2017}) 5... Nbd7 {[%emt 0:08:11]} 6. e4 {[%emt 0:00:36]} fxe4 $146 {[%emt 0:01:38]} ({Predecessor:} 6... f4 7. Bd2 Be7 8. Qc2 a5 9. O-O-O Nc5 10. g3 g5 11. gxf4 gxf4 12. Bh3 Rg8 13. Bxc8 Qxc8 {0-1 (95) Suleymanli,R-Petrosyan,M (1780) Vung Tau 2008}) 7. fxe4 {[%emt 0:01:34]} Be7 {[%emt 0:01:23]} 8. Nf3 {[%emt 0:00:40]} Nc5 {[%emt 0:01:41]} 9. Bd3 {[%emt 0:02:52]} a5 {[%emt 0:00:37]} 10. O-O {[%emt 0:00:15]} Bg4 {[%emt 0:02:17]} 11. b3 {[%emt 0:01:57]} O-O {[%emt 0:00:48]} 12. Rb1 {[%emt 0:00:18]} h6 {[%emt 0:09:08]} 13. a3 {[%emt 0:00:50]} b6 {[%emt 0:00:55]} 14. b4 {[%emt 0:00:40]} ({White should try} 14. Bc2 $14) 14... axb4 {[%emt 0:00:03]} 15. axb4 {[%emt 0:00:07]} Ncd7 {[%emt 0:00:14]} 16. Qb3 {[%emt 0:03:11]} Nh7 {[%emt 0:01:15]} 17. Be2 {[%emt 0:22:37]} Bxf3 {[%emt 0:08:44]} 18. Bxf3 {[%emt 0:00:53]} Bg5 {[%emt 0:00:30]} 19. Ne2 {[%emt 0:17:19]} Bxc1 {[%emt 0:02:47]} 20. Rbxc1 $15 {[%emt 0:01:25]} Qg5 {[%emt 0:01:41]} 21. Ng3 {[%emt 0:05:41]} g6 {[%emt 0:02:20]} 22. Ra1 {[%emt 0:02:11]} Qd2 {[%emt 0:02:07]} 23. Rad1 {[%emt 0:04:04]} Qg5 {[%emt 0:03:58]} 24. Ra1 {[%emt 0:01:38]} Nhf6 {[%emt 0:05:07]} 25. Ra3 {[%emt 0:03:23]} Ng4 {[%emt 0:07:06]} 26. Rxa8 {[%emt 0:14:53]} Rxa8 {[%emt 0:00:36]} 27. Bxg4 {[%emt 0:00:15]} Qxg4 {[%emt 0:00:23]} 28. Qe3 {[%emt 0:00:16]} Kg7 {[%emt 0:02:41]} 29. c5 {[%emt 0:03:56]} bxc5 {[%emt 0:03:34]} 30. bxc5 {[%emt 0:00:10]} Nf6 {[%emt 0:05:33]} 31. cxd6 {[%emt 0:01:24]} cxd6 {[%emt 0:00:03]} 32. Qb6 {[%emt 0:01:30]} Qd7 {[%emt 0:01:01]} 33. Rc1 {[%emt 0:01:00]} Ne8 {[%emt 0:00:11]} 34. h3 {[%emt 0:02:16]} Qa7 {[%emt 0:02:21]} 1/2-1/2

[Event "Faroes Open 2018"]
[Site "Sandavagur"]
[Date "2018.07.11"]
[Round "6"]
[White "Haubro, Siv"]
[Black "Nielsen, Suni í Horni"]
[Result "1-0"]
[ECO "C50"]
[WhiteElo "1780"]
[BlackElo "1487"]
[Annotator "NA"]
[PlyCount "51"]
[EventDate "2018.07.07"]
[EventType "swiss"]
[EventCountry "FAI"]
[SourceTitle "playchess.com"]
[Source "ChessBase"]
[SourceQuality "1"]
[TimeControl "40/5400+30:900+30"]

1. e4 {[%emt 0:00:00]} e5 {[%emt 0:00:00]} 2. Nf3 {[%emt 0:00:00]} Nc6 {[%emt 0:00:14]} 3. Bc4 {[%emt 0:00:50]} Bc5 {[%emt 0:01:49]} 4. O-O {[%emt 0:01:55]} d6 {[%emt 0:00:26]} 5. h3 {[%emt 0:00:20]} Nf6 {[%emt 0:01:16]} 6. Re1 {[%emt 0:00:41]} O-O {[%emt 0:02:46]} 7. c3 {[%emt 0:08:11]} h6 {[%emt 0:07:14]} 8. Bb3 {[%emt 0:03:31]} Re8 {[%emt 0:07:28]} 9. Bc2 {[%emt 0:01:48]} Ne7 {[%emt 0:06:01]} 10. d4 {[%emt 0:02:23]} exd4 {[%emt 0:00:07]} 11. cxd4 {[%emt 0:00:08]} Bb4 {[%emt 0:01:40]} 12. Nc3 {[%emt 0:00:18]} Ng6 13. e5 {[%emt 0:23:35]} dxe5 {[%emt 0:00:45]} 14. Bxg6 {[%emt 0:00:12]} Bxc3 {[%emt 0:02:37]} 15. Bxf7+ {[%emt 0:01:11]} Kxf7 {[%emt 0:00:07]} 16. Nxe5+ {[%emt 0:00:29]} Kg8 {[%emt 0:00:12]} 17. bxc3 {[%emt 0:00:27]} Be6 {[%emt 0:14:52]} 18. Qf3 {[%emt 0:04:06]} Bd5 {[%emt 0:01:14]} 19. Qf5 {[%emt 0:04:31]} Rf8 {[%emt 0:10:29]} 20. Ba3 {[%emt 0:01:47]} Re8 {[%emt 0:00:57]} 21. Qg6 {[%emt 0:05:08]} c6 {[%emt 0:01:03]} 22. Bc1 {[%emt 0:04:20]} Nd7 {[%emt 0:07:01]} 23. Bxh6 {[%emt 0:00:41]} Qf6 {[%emt 0:00:52]} 24. Qxf6 {[%emt 0:03:42]} Nxf6 {[%emt 0:00:09]} 25. Bf4 {[%emt 0:03:02]} Ne4 {[%emt 0:01:31]} 26. c4 {[%emt 0:00:42]} 1-0

[Event "Faroes Open 2018"]
[Site "Sandavagur"]
[Date "2018.07.11"]
[Round "6"]
[White "Nielsen, Jón í Horni"]
[Black "Olsen, Kaj"]
[Result "1/2-1/2"]
[ECO "C47"]
[WhiteElo "1735"]
[BlackElo "1696"]
[Annotator "NA"]
[PlyCount "61"]
[EventDate "2018.07.07"]
[EventType "swiss"]
[EventCountry "FAI"]
[SourceTitle "playchess.com"]
[Source "ChessBase"]
[SourceQuality "1"]
[TimeControl "40/5400+30:900+30"]

1. e4 {[%emt 0:00:00]} e5 {[%emt 0:00:00]} 2. Nf3 {[%emt 0:00:31]} Nf6 {[%emt 0:00:00]} 3. Nc3 {[%emt 0:00:58]} Nc6 {[%emt 0:00:02]} 4. d3 {[%emt 0:01:40]} d5 {[%emt 0:02:58]} 5. exd5 {[%emt 0:03:56]} Nxd5 {[%emt 0:00:10]} 6. Nxd5 {[%emt 0:04:42]} Qxd5 {[%emt 0:00:09]} 7. Be2 {[%emt 0:03:36]} Bc5 {[%emt 0:01:09]} 8. O-O {[%emt 0:03:07]} O-O {[%emt 0:04:35]} 9. Bd2 {[%emt 0:07:04]} Be6 {[%emt 0:11:38]} 10. Ng5 {[%emt 0:03:37]} Bf5 {[%emt 0:08:45]} 11. Bf3 {[%emt 0:01:31]} Qd7 {[%emt 0:02:00]} 12. Be3 {[%emt 0:07:05]} Bb6 {[%emt 0:07:32]} 13. Ne4 {[%emt 0:08:36]} Rab8 {[%emt 0:10:26]} 14. Bxb6 {[%emt 0:04:40]} axb6 {[%emt 0:03:11]} 15. Ng3 {[%emt 0:00:37]} Bg6 {[%emt 0:01:08]} 16. Bxc6 {[%emt 0:02:00]} Qxc6 {[%emt 0:01:33]} 17. f4 {[%emt 0:03:47]} exf4 {[%emt 0:04:52]} 18. Rxf4 {[%emt 0:00:18]} Rfe8 {[%emt 0:00:39]} 19. Rc4 {[%emt 0:05:23]} Qf6 {[%emt 0:08:43]} 20. Rc3 {[%emt 0:04:43]} c6 {[%emt 0:02:43]} 21. Qg4 {[%emt 0:03:39]} Re7 {[%emt 0:03:04]} 22. Rf1 {[%emt 0:01:07]} Qe6 {[%emt 0:01:45]} 23. Qxe6 {[%emt 0:01:40]} Rxe6 {[%emt 0:00:26]} 24. Rc4 {[%emt 0:00:17]} Rd8 {[%emt 0:02:05]} 25. Rcf4 {[%emt 0:01:35]} f6 {[%emt 0:00:54]} 26. h4 {[%emt 0:02:02]} h6 {[%emt 0:00:49]} 27. Rg4 {[%emt 0:00:46]} Kf7 {[%emt 0:04:54]} 28. h5 {[%emt 0:11:33]} Bh7 {[%emt 0:00:11]} 29. Rb4 {[%emt 0:01:22]} c5 {[%emt 0:01:41]} 30. Rbf4 {[%emt 0:02:57]} Ra8 {[%emt 0:03:33]} 31. a4 {[%emt 0:00:48]} 1/2-1/2